bitfinex-derivatives/quotes_SOLF0:USTF0_20241216
["timestamp","ask_amount","ask_price","bid_price","bid_amount"]
[1734392685536,2.26,216.18,216.14,2.3124]
[1734392686843,2.26,216.18,216.08,1.5253]
[1734392687041,2.26,216.18,216.11,6.48921167]
[1734392687241,6.48921167,216.19,216.11,6.48921167]
[1734392687441,2.26,216.19,216.13,6.48921167]
[1734392687639,2.26,216.2,216.13,6.48921167]
[1734392687835,2.26,216.2,216.15,6.48921167]
[1734392688037,2.26,216.21,216.19,2.312]
[1734392688442,2.26,216.21,216.17,6.48921167]
[1734392688636,6.48921167,216.23,216.17,6.48921167]
[1734392688945,2.26,216.22,216.17,6.48921167]
[1734392689445,6.48921167,216.23,216.17,6.48921167]
[1734392689742,8.74921167,216.24,216.17,6.48921167]
[1734392690241,5.63751634,216.27,216.2,2.3118]
[1734392690441,7.89751634,216.27,216.19,6.48921167]
[1734392690642,7.89751634,216.27,216.18,6.48921167]
[1734392690643,6.48921167,216.25,216.18,6.48921167]
[1734392690839,8.80061167,216.25,216.2,2.3119]
[1734392691942,2.26,216.27,216.18,2.3121]
[1734392691943,8.80081167,216.23,216.18,2.3121]
[1734392692547,8.80081167,216.23,216.19,2.312]
[1734392692849,8.80081167,216.23,216.16,1.5545]
[1734392693057,8.80081167,216.23,216.18,2.3121]
[1734392693950,2.3116,216.23,216.18,6.48921167]
[1734392694142,2.26,216.26,216.2,6.48921167]
[1734392694343,1.5106,216.34,216.2,6.48921167]
[1734392694344,6.48921167,216.27,216.2,6.48921167]
[1734392695544,8.80041167,216.27,216.22,2.3116]
[1734392695951,7.83263005,216.29,216.22,2.3116]
[1734392695952,6.48921167,216.25,216.22,2.3116]
[1734392697047,7.83263005,216.29,216.22,2.3116]
[1734392697254,6.48921167,216.26,216.22,2.3116]
[1734392697956,2.3116,216.23,216.19,3.7981]
[1734392698555,7.83263005,216.29,216.17,2.3122]
[1734392698556,6.48921167,216.22,216.17,2.3122]
[1734392700558,2.3118,216.21,216.17,2.3122]
[1734392701053,6.48921167,216.22,216.16,1.5545]
[1734392701257,6.48921167,216.22,216.18,2.3121]
[1734392701258,8.80091167,216.22,216.18,2.3121]
[1734392702054,2.3117,216.22,216.18,2.3121]
[1734392702257,2.3114,216.25,216.19,6.48921167]
[1734392702660,2.26,216.28,216.21,6.48921167]
[1734392702958,8.74921167,216.28,216.21,6.48921167]
[1734392703358,2.3113,216.26,216.21,6.48921167]
[1734392704555,2.3113,216.26,216.22,2.3116]
[1734392705859,2.3113,216.26,216.22,2.3117]
[1734392708357,2.26,216.28,216.21,6.48921167]
[1734392708561,2.3112,216.27,216.23,2.3116]
[1734392709064,2.3113,216.26,216.22,2.3117]
[1734392711865,8.80051167,216.26,216.22,2.3117]
[1734392712170,5.50464207,216.29,216.2,1.4795]
[1734392712171,6.48921167,216.24,216.2,2.3119]
[1734392712465,6.48921167,216.24,216.17,8.74921167]
[1734392712860,8.80071167,216.24,216.19,2.312]
[1734392713067,8.80071167,216.24,216.17,6.48921167]
[1734392713864,2.3115,216.24,216.17,6.48921167]
[1734392714167,2.3113,216.26,216.21,6.48921167]
[1734392715265,6.48921167,216.27,216.23,2.3115]
[1734392716074,7.76464207,216.29,216.23,2.3115]
[1734392716270,8.80041167,216.27,216.23,2.3115]
[1734392717674,2.3112,216.27,216.24,2.3114]
[1734392717873,8.80031167,216.28,216.21,6.48921167]
[1734392718473,8.80031167,216.28,216.24,2.3114]
[1734392718971,8.80031167,216.28,216.25,2.3113]
[1734392719176,6.48921167,216.28,216.23,6.48921167]
[1734392720279,6.48921167,216.28,216.25,2.3113]
[1734392720577,8.80021167,216.28,216.25,2.3113]
[1734392721077,2.26,216.31,216.23,6.48921167]
[1734392721278,6.48921167,216.29,216.23,6.48921167]
[1734392721870,8.80021167,216.29,216.23,6.48921167]
[1734392722375,2.3107,216.31,216.27,2.311]
[1734392722579,6.48921167,216.34,216.27,6.48921167]
[1734392723077,6.48921167,216.3,216.26,2.26]
[1734392723375,6.48921167,216.3,216.24,6.48921167]
[1734392724581,2.311,216.29,216.26,2.3112]
[1734392725181,2.3111,216.28,216.25,2.3113]
[1734392727979,2.311,216.29,216.25,2.3113]
[1734392728279,6.48921167,216.3,216.25,2.3113]
[1734392729477,2.3111,216.28,216.25,2.3113]
[1734392729674,56.67132164,216.36,216.26,6.48921167]
[1734392729882,6.48921167,216.34,216.28,6.48921167]
[1734392730082,2.3106,216.33,216.28,6.48921167]
[1734392730583,2.3106,216.33,216.29,2.3108]
[1734392730874,2.3107,216.32,216.23,1.5228]
[1734392731081,6.48921167,216.34,216.28,2.311]
[1734392731479,2.3106,216.33,216.28,2.311]
[1734392731679,6.48921167,216.33,216.28,2.311]
[1734392732083,2.3107,216.32,216.28,2.311]
[1734392732686,2.3108,216.31,216.28,2.311]
[1734392732982,6.48921167,216.31,216.26,2.3112]
[1734392733287,2.3111,216.28,216.23,10.25201167]
[1734392734182,2.3111,216.28,216.25,2.3113]
[1734392737385,6.48921167,216.28,216.23,1.5228]
[1734392737890,2.3116,216.23,216.2,2.3119]
[1734392738890,2.3115,216.24,216.21,2.3118]
[1734392741991,2.3116,216.23,216.2,2.3119]
[1734392742884,6.48921167,216.22,216.16,3.1824]
[1734392743187,6.48921167,216.18,216.1,1.5157]
[1734392743387,2.3124,216.15,216.12,2.3126]
[1734392743888,6.48921167,216.16,216.1,8.00491167]
[1734392744592,2.24,216.2,216.1,8.00491167]
[1734392744793,6.48921167,216.18,216.1,8.00491167]
[1734392744990,2.3124,216.16,216.12,2.3127]
[1734392747196,2.3124,216.15,216.12,2.3127]
[1734392747989,2.3126,216.13,216.09,2.313]
[1734392748189,2.24,216.2,216.05,3.2327]
[1734392748190,6.48921167,216.14,216.05,3.2327]
[1734392748392,6.48921167,216.12,216.05,9.72191167]
[1734392748600,2.313,216.1,216.06,2.3134]
[1734392748793,2.313,216.1,216.07,6.48921167]
[1734392748996,6.48921167,216.12,216.07,6.48921167]
[1734392749191,2.3129,216.11,216.07,8.80251167]
[1734392750993,2.3129,216.11,216.06,2.3133]
[1734392751192,2.3129,216.11,216.07,6.48921167]
[1734392752591,2.3129,216.11,216.07,8.80241167]
[1734392752995,2.24,216.15,216.01,5.2933]
[1734392752996,2.3128,216.12,216.09,6.48921167]
[1734392754399,6.48921167,216.12,216.01,3.0533]
[1734392754595,8.74921167,216.12,216.05,6.48921167]
[1734392755994,2.313,216.1,216.06,2.3133]
[1734392756199,2.313,216.1,216.07,6.48921167]
[1734392758996,8.74921167,216.12,216.01,3.0533]
[1734392759202,2.3134,216.07,216.03,8.80291167]
[1734392759997,2.3134,216.07,216.03,2.3137]
[1734392760301,2.3134,216.06,216.02,8.80301167]
[1734392760601,2.3134,216.06,216.04,6.48921167]
[1734392761095,6.48921167,216.1,216.04,6.48921167]
[1734392761301,8.74921167,216.12,216.04,6.48921167]
[1734392761603,2.26,216.12,216.04,6.48921167]
[1734392761901,8.74921167,216.12,216.04,6.48921167]
[1734392762394,2.3132,216.08,216.05,2.3134]
[1734392763004,8.74921167,216.12,216.01,3.0533]
[1734392763503,2.313,216.1,216.04,8.80281167]
[1734392763802,8.74921167,216.12,216.04,8.80281167]
[1734392764506,2.3133,216.08,216.04,8.80281167]
[1734392765301,8.74921167,216.12,216.04,8.80281167]
[1734392765605,6.48921167,216.1,216.04,8.80281167]
[1734392766197,2.3134,216.07,216.03,2.3136]
[1734392767098,2.3135,216.05,216.02,8.80301167]
[1734392767602,2.24,216.07,216.02,6.48921167]
[1734392767803,6.48921167,216.11,216.04,6.48921167]
[1734392767995,6.48921167,216.05,215.8,11.5808]
[1734392768210,8.72921167,216.05,215.98,6.48921167]
[1734392768602,2.3139,216.02,215.98,8.80331167]
[1734392769002,8.72921167,216.05,215.98,8.80331167]
[1734392769198,8.72921167,216.05,215.98,2.3141]
[1734392769199,2.3139,216.01,215.98,2.3141]
[1734392769404,2.3139,216.01,215.98,8.80331167]
[1734392769606,2.3139,216.01,215.98,2.3141]
[1734392769803,2.3139,216.01,215.98,8.80331167]
[1734392770998,2.3139,216.01,215.98,2.3141]
[1734392771506,2.3138,216.02,215.98,2.3141]
[1734392771997,4.6243,216.18,215.93,10.96334286]
[1734392771998,2.24,216.06,215.99,6.48921167]
[1734392772203,6.48921167,216.12,216.05,6.48921167]
[1734392772596,11.04191167,216.12,216.08,2.3131]
[1734392772903,6.48921167,216.1,216.02,6.48921167]
[1734392773101,8.80221167,216.1,216.06,2.3134]
[1734392773405,6.48921167,216.1,216.02,6.48921167]
[1734392773807,6.48921167,216.1,216.01,1.5717]
[1734392774104,6.48921167,216.1,216.02,6.48921167]
[1734392774605,6.48921167,216.1,216.01,1.5717]
[1734392774606,6.48921167,216.1,216.04,6.48921167]
[1734392774802,8.72921167,216.12,216.04,6.48921167]
[1734392775700,8.72921167,216.12,216.06,6.48921167]
[1734392776093,6.48921167,216.12,216.1,2.3129]
[1734392776901,4.5525,216.14,216.1,2.3129]
[1734392776902,6.48921167,216.13,216.1,2.3129]
[1734392778405,6.48921167,216.15,216.12,2.3127]
[1734392779899,6.48921167,216.15,216.08,6.48921167]
[1734392780103,6.48921167,216.15,216.13,2.3126]
[1734392781500,6.48921167,216.16,216.14,2.3125]
[1734392783306,2.3119,216.2,216.16,2.3123]
[1734392783503,49.53132658,216.22,216.14,6.48921167]
[1734392783698,49.53132658,216.22,216.14,8.72921167]
[1734392783699,6.48921167,216.22,216.14,8.72921167]
[1734392783898,6.48921167,216.22,216.21,2.3118]
[1734392785009,6.48921167,216.22,216.17,3.1151]
[1734392785308,6.48921167,216.22,216.12,2.24]
[1734392785309,6.48921167,216.18,216.12,2.24]
[1734392785704,6.48921167,216.18,216.16,2.3122]
[1734392786201,2.24,216.22,216.17,6.48921167]
[1734392786406,6.48921167,216.23,216.17,6.48921167]
[1734392786707,6.48921167,216.25,216.17,8.72921167]
[1734392786904,6.48921167,216.25,216.19,6.48921167]
[1734392787604,2.3112,216.27,216.19,6.48921167]
[1734392787811,6.48921167,216.26,216.19,6.48921167]
[1734392788005,8.80051167,216.26,216.21,2.3118]
[1734392788206,8.80051167,216.26,216.19,6.48921167]
[1734392788405,2.24,216.28,216.17,6.48921167]
[1734392788406,6.48921167,216.24,216.17,6.48921167]
[1734392788602,6.48921167,216.24,216.21,2.3118]
[1734392788809,6.48921167,216.22,216.16,2.24]
[1734392789109,2.3111,216.27,216.23,2.3115]
[1734392789309,6.48921167,216.25,216.18,6.48921167]
[1734392789608,6.48921167,216.25,216.19,4.7405]
[1734392790006,2.24,216.28,216.2,6.48921167]
[1734392790210,6.48921167,216.26,216.2,6.48921167]
[1734392790510,6.48921167,216.26,216.25,2.3113]
[1734392792715,2.24,216.3,216.2,6.48921167]
[1734392792911,6.48921167,216.27,216.26,2.3112]
[1734392793317,2.24,216.3,216.22,6.48921167]
[1734392793519,2.24,216.32,216.27,2.311]
[1734392793715,6.48921167,216.29,216.27,2.311]
[1734392794118,6.48921167,216.29,216.22,6.48921167]
[1734392794420,6.48921167,216.29,216.28,2.311]
[1734392794920,6.48921167,216.29,216.21,2.24]
[1734392794921,2.3104,216.34,216.24,6.48921167]
[1734392795123,6.48921167,216.31,216.24,6.48921167]
[1734392795817,54.4602,216.42,216.21,2.24]
[1734392796013,6.48921167,216.35,216.28,6.48921167]
[1734392796217,54.4602,216.42,216.3,6.48921167]
[1734392796420,6.48921167,216.37,216.3,6.48921167]
[1734392797529,1.5158,216.48,216.34,6.48921167]
[1734392797719,6.48921167,216.41,216.34,6.48921167]
[1734392798322,1.5158,216.48,216.33,2.24]
[1734392798323,1.5158,216.48,216.36,6.48921167]
[1734392798519,2.24,216.47,216.38,6.48921167]
[1734392798723,6.48921167,216.44,216.38,8.72921167]
[1734392799027,2.24,216.5,216.39,3.1391]
[1734392799028,6.48921167,216.46,216.39,3.1391]
[1734392799327,6.48921167,216.44,216.39,3.1391]
[1734392799920,10.14807073,216.49,216.39,3.1391]
[1734392800119,10.14807073,216.52,216.39,13.28717073]
[1734392800329,2.24,216.51,216.4,1.569]
[1734392800622,2.24,216.51,216.46,2.3091]
[1734392800827,10.14807073,216.52,216.46,2.3091]
[1734392801325,10.14807073,216.55,216.5,2.3087]
[1734392801523,10.14807073,216.55,216.45,2.24]
[1734392801925,10.14807073,216.55,216.49,2.3088]
[1734392802431,10.14807073,216.55,216.5,2.3087]
[1734392802733,10.14807073,216.55,216.45,2.24]
[1734392802927,10.14807073,216.55,216.42,10.14807073]
[1734392803128,10.14807073,216.55,216.43,2.24]
[1734392803531,2.3085,216.53,216.46,2.309]
[1734392804629,10.14807073,216.55,216.46,2.309]
[1734392804825,2.3085,216.52,216.46,2.309]
[1734392805031,10.14807073,216.55,216.46,2.309]
[1734392805231,2.3087,216.5,216.44,2.3093]
[1734392805527,2.3087,216.5,216.4,1.569]
[1734392805725,2.309,216.48,216.43,2.3094]
[1734392805928,2.309,216.48,216.4,1.569]
[1734392806434,2.309,216.48,216.43,2.3094]
[1734392807324,2.3088,216.49,216.44,2.3093]
[1734392807527,10.14807073,216.52,216.4,11.71707073]
[1734392807729,12.38807073,216.52,216.4,11.71707073]
[1734392807929,2.3087,216.51,216.4,11.71707073]
[1734392808231,12.38807073,216.52,216.4,1.569]
[1734392808631,2.309,216.47,216.42,2.3095]
[1734392810228,10.14807073,216.49,216.39,3.1391]
[1734392811231,2.3093,216.45,216.39,3.1391]
[1734392811432,2.24,216.47,216.39,3.1391]
[1734392812533,10.14807073,216.46,216.39,3.1391]
[1734392812732,2.3096,216.42,216.37,2.3101]
[1734392812931,10.14807073,216.43,216.32,2.24]
[1734392813126,10.14807073,216.4,216.29,5.3289]
[1734392813333,2.3102,216.36,216.32,2.3106]
[1734392813537,2.3102,216.36,216.29,5.3289]
[1734392813737,2.3102,216.36,216.3,5.41230607]
[1734392813938,2.3103,216.35,216.31,2.3106]
[1734392814436,12.38807073,216.4,216.29,5.3289]
[1734392814636,2.3101,216.37,216.32,2.3105]
[1734392814837,2.24,216.4,216.31,10.14807073]
[1734392816335,2.24,216.44,216.34,10.14807073]
[1734392816533,2.24,216.44,216.34,12.38807073]
[1734392817337,2.3096,216.42,216.34,12.38807073]
[1734392817541,12.38807073,216.48,216.34,12.38807073]
[1734392818039,2.3094,216.44,216.34,12.38807073]
[1734392818636,1.5259,216.51,216.34,12.38807073]
[1734392818840,10.14807073,216.49,216.34,12.38807073]
[1734392819138,2.3092,216.46,216.37,10.14807073]
[1734392819334,2.3092,216.46,216.38,3.0479]
[1734392820643,2.3092,216.46,216.42,2.3095]
[1734392821139,2.24,216.45,216.38,3.0479]
[1734392821440,2.24,216.45,216.3,12.38807073]
[1734392821441,10.14807073,216.43,216.3,12.38807073]
[1734392821635,10.14807073,216.43,216.31,1.5412]
[1734392822136,2.31,216.39,216.34,2.3104]
[1734392822939,2.31,216.39,216.35,2.3103]
[1734392823449,10.14807073,216.43,216.34,2.3104]
[1734392823645,10.14807073,216.43,216.31,1.5412]
[1734392824133,2.3102,216.37,216.33,2.3105]
[1734392825737,2.3102,216.37,216.34,2.3104]
[1734392827140,6.4987874,216.4,216.34,2.3104]
[1734392827743,6.4987874,216.4,216.33,8.8092874]
[1734392828446,2.3101,216.37,216.33,8.8092874]
[1734392828740,6.4987874,216.4,216.31,1.5412]
[1734392828944,6.4987874,216.36,216.31,1.5412]
[1734392829247,2.3105,216.34,216.31,1.5412]
[1734392831041,6.4987874,216.34,216.29,1.5067]
[1734392831250,6.4987874,216.34,216.26,6.4987874]
[1734392831540,6.4987874,216.34,216.28,6.4987874]
[1734392832341,2.3108,216.3,216.27,2.3112]
[1734392832544,6.4987874,216.3,216.19,4.7681]
[1734392832749,6.4987874,216.26,216.19,11.2668874]
[1734392832942,2.3116,216.23,216.19,9.6711874]
[1734392833143,2.3116,216.23,216.19,11.9831874]
[1734392833343,6.4987874,216.26,216.19,11.9831874]
[1734392833545,6.4987874,216.26,216.19,5.4844]
[1734392833740,6.4987874,216.26,216.19,3.1724]
[1734392834048,2.3117,216.22,216.19,3.1724]
[1734392834246,2.24,216.27,216.19,5.4843]
[1734392834440,2.24,216.27,216.19,3.1724]
[1734392834643,2.3114,216.25,216.19,3.1724]
[1734392834839,2.24,216.27,216.2,2.3118]
[1734392835343,2.3115,216.25,216.2,2.3118]
[1734392835550,2.24,216.27,216.2,2.3118]
[1734392836446,2.24,216.27,216.19,5.4844]
[1734392836447,2.3117,216.23,216.19,5.4844]
[1734392838851,2.24,216.27,216.19,3.1724]
[1734392839450,2.3113,216.26,216.19,3.1724]
[1734392839846,2.3115,216.24,216.19,5.4843]
[1734392840149,2.24,216.27,216.19,3.1724]
[1734392840550,2.3118,216.21,216.19,3.1724]
[1734392841150,2.3117,216.23,216.19,3.1724]
[1734392841947,2.3115,216.25,216.19,3.1724]
[1734392842255,4.6203,216.37,216.19,3.1724]
[1734392842555,2.3109,216.3,216.21,10.16841702]
[1734392842758,2.3109,216.3,216.21,12.40841702]
[1734392843451,10.16841702,216.34,216.28,2.311]
[1734392843452,2.24,216.34,216.28,2.311]
[1734392843845,2.3107,216.31,216.24,10.16841702]
[1734392844056,2.3107,216.31,216.27,2.3111]
[1734392844456,2.3107,216.31,216.24,10.16841702]
[1734392844756,2.3107,216.31,216.28,2.311]
[1734392847054,2.24,216.34,216.21,12.40841702]
[1734392847354,10.16841702,216.32,216.21,2.24]
[1734392847853,10.16841702,216.32,216.24,2.3114]
[1734392847854,2.3111,216.28,216.24,2.3114]
[1734392849859,2.311,216.29,216.21,12.40841702]
[1734392850055,2.311,216.29,216.22,1.6033]
[1734392850255,2.3106,216.32,216.28,2.311]
[1734392851263,2.3107,216.31,216.28,2.311]
[1734392851761,2.24,216.34,216.28,2.311]
[1734392851959,2.3106,216.32,216.28,2.311]
[1734392852157,2.24,216.34,216.29,2.3108]
[1734392852359,10.16841702,216.38,216.24,10.16841702]
[1734392852557,2.24,216.37,216.27,10.16841702]
[1734392852857,2.24,216.37,216.31,2.3106]
[1734392853062,2.3102,216.36,216.28,3.1541]
[1734392853361,10.16841702,216.44,216.3,10.16841702]
[1734392853554,45.42410977,216.43,216.36,2.3101]
[1734392853762,2.3098,216.4,216.36,2.3101]
[1734392856262,43.18410977,216.43,216.32,2.24]
[1734392856460,43.18410977,216.43,216.33,10.16841702]
[1734392857060,2.3095,216.43,216.39,2.3099]
[1734392858064,2.3098,216.4,216.33,10.16841702]
[1734392858266,10.16841702,216.44,216.31,1.5257]
[1734392858568,10.16841702,216.44,216.32,2.24]
[1734392858968,2.3097,216.41,216.35,2.3103]
[1734392859165,10.16841702,216.44,216.35,2.3103]
[1734392859469,2.31,216.38,216.34,2.3104]
[1734392859963,10.16841702,216.44,216.31,1.5257]
[1734392860169,2.31,216.38,216.31,1.5257]
[1734392861363,2.31,216.38,216.35,2.3103]
[1734392861567,10.16841702,216.44,216.31,1.5257]
[1734392861568,2.3102,216.36,216.31,1.5257]
[1734392862565,2.3101,216.38,216.33,2.3104]
[1734392862761,10.16841702,216.44,216.33,2.3104]
[1734392863263,2.3097,216.41,216.33,2.3104]
[1734392863465,10.16841702,216.44,216.33,2.3104]
[1734392864069,2.3101,216.37,216.33,2.3104]
[1734392866566,2.3101,216.37,216.31,1.5257]
[1734392866774,10.16841702,216.44,216.31,1.5257]
[1734392867869,2.3098,216.4,216.36,2.3102]
[1734392869267,2.3098,216.4,216.33,10.16841702]
[1734392869475,2.3098,216.4,216.37,2.3101]
[1734392870273,2.24,216.46,216.36,10.16841702]
[1734392870476,2.24,216.46,216.37,3.1537]
[1734392871574,2.3095,216.43,216.4,2.3097]
[1734392872676,8.73574736,216.46,216.39,6.49574736]
[1734392872872,6.49574736,216.46,216.39,6.49574736]
[1734392873377,2.3092,216.45,216.41,2.3096]
[1734392873770,43.16286267,216.52,216.41,6.49574736]
[1734392873975,2.3092,216.46,216.42,2.3094]
[1734392874275,2.24,216.51,216.41,6.49574736]
[1734392874276,6.49574736,216.5,216.43,6.49574736]
[1734392875476,2.3089,216.48,216.44,2.3093]
[1734392879079,50.8182663,216.52,216.38,15.79774702]
[1734392879276,2.3093,216.45,216.41,2.3096]
[1734392880380,2.3093,216.45,216.42,2.3095]
[1734392880683,2.3094,216.44,216.39,2.24]
[1734392881378,2.3094,216.44,216.4,2.3097]
[1734392881982,2.3092,216.46,216.39,2.24]
[1734392882481,2.3092,216.46,216.42,2.3095]
[1734392885086,2.3093,216.44,216.41,2.3096]
[1734392889495,2.3089,216.49,216.42,2.3095]
[1734392889798,7.65540363,216.52,216.39,2.24]
[1734392890198,7.65540363,216.52,216.43,2.3094]
[1734392890598,7.65540363,216.52,216.39,2.24]
[1734392890795,2.309,216.47,216.44,2.3093]
[1734392891100,2.24,216.52,216.39,2.24]
[1734392891295,2.24,216.52,216.41,10.14501052]
[1734392891497,2.24,216.52,216.45,2.3091]
[1734392891498,2.3089,216.49,216.45,2.3091]
[1734392892094,2.3089,216.49,216.46,2.3091]
[1734392892395,2.3089,216.49,216.39,3.7393]
[1734392892396,2.24,216.55,216.44,10.14501052]
[1734392892592,44.45848947,216.57,216.5,2.3086]
[1734392892902,2.24,216.55,216.5,2.3086]
[1734392893199,2.3084,216.54,216.5,2.3086]
[1734392893392,46.69848947,216.57,216.47,10.14501052]
[1734392893591,2.3082,216.55,216.47,10.14501052]
[1734392894701,2.3082,216.55,216.48,2.24]
[1734392895696,2.3082,216.55,216.51,2.3086]
[1734392896096,2.3078,216.59,216.54,2.3082]
[1734392896398,12.08761852,216.66,216.58,6.48911374]
[1734392896592,12.08761852,216.66,216.6,6.48911374]
[1734392896795,6.48911374,216.64,216.54,1.5023]
[1734392896995,5.59850478,216.66,216.55,6.48911374]
[1734392896996,6.48911374,216.62,216.55,6.48911374]
[1734392897605,2.3077,216.59,216.55,6.48911374]
[1734392898399,2.24,216.64,216.51,8.72911374]
[1734392898400,6.48911374,216.58,216.51,8.72911374]
[1734392898801,2.24,216.64,216.5,2.3087]
[1734392898802,2.3083,216.54,216.5,2.3087]
[1734392899103,2.3083,216.54,216.49,6.48911374]
[1734392899297,2.3083,216.54,216.49,8.79781374]
[1734392900103,2.3083,216.54,216.49,2.3087]
[1734392900498,2.3086,216.51,216.47,2.3089]
[1734392902897,12.38159969,216.58,216.46,3.7863]
[1734392902898,2.3088,216.5,216.46,3.7863]
[1734392903094,12.38159969,216.58,216.46,3.7863]
[1734392903704,12.38159969,216.58,216.45,13.95909969]
[1734392903705,12.38159969,216.58,216.45,1.5775]
[1734392903900,12.38159969,216.58,216.45,3.8867]
[1734392903901,1.5511,216.57,216.45,3.8867]
[1734392904301,2.3088,216.49,216.45,3.8867]
[1734392904706,2.24,216.53,216.45,1.5775]
[1734392904902,2.3089,216.48,216.45,1.5775]
[1734392905200,24.10260478,216.66,216.45,11.71909969]
[1734392905201,10.21260478,216.66,216.45,11.71909969]
[1734392905499,10.14159969,216.64,216.49,10.14159969]
[1734392905701,10.14159969,216.64,216.49,12.38159969]
[1734392905899,2.3081,216.56,216.49,12.38159969]
[1734392906808,2.24,216.6,216.49,12.38159969]
[1734392907007,2.3082,216.55,216.49,4.5487]
[1734392907508,2.3082,216.55,216.5,2.3087]
[1734392908005,2.24,216.6,216.49,2.24]
[1734392908199,2.24,216.6,216.52,2.3085]
[1734392908705,2.24,216.6,216.55,2.3082]
[1734392909108,2.3077,216.59,216.55,2.3082]
[1734392909704,1.5511,216.65,216.49,12.38159969]
[1734392909705,2.3075,216.61,216.56,2.308]
[1734392910508,2.3075,216.61,216.54,2.24]
[1734392910509,2.24,216.64,216.54,2.24]
[1734392910709,2.24,216.64,216.55,10.14159969]
[1734392910907,0.92310532,216.66,216.55,10.14159969]
[1734392911311,2.3073,216.63,216.58,2.3077]
[1734392912710,2.3073,216.63,216.59,2.3077]
[1734392914002,2.3072,216.65,216.56,1.6165]
[1734392914209,2.3072,216.65,216.6,2.3076]
[1734392914608,2.3072,216.64,216.6,2.3076]
[1734392916006,0.92310532,216.66,216.56,3.8565]
[1734392917616,0.92310532,216.66,216.56,1.6165]
[1734392918515,2.3076,216.61,216.56,3.9245]
[1734392920015,2.3076,216.61,216.56,10.41041977]
[1734392921520,2.3076,216.61,216.56,8.10241977]
[1734392921720,2.3076,216.61,216.57,2.3079]
[1734392922213,6.48591977,216.63,216.56,1.6165]
[1734392922418,2.3077,216.6,216.56,10.41041977]
[1734392922821,6.48591977,216.63,216.56,8.10241977]
[1734392923015,2.3078,216.59,216.56,8.10241977]
[1734392925020,2.3078,216.59,216.56,10.41041977]
[1734392925918,0.92310532,216.66,216.56,10.41041977]
[1734392926123,7.40902509,216.66,216.58,6.48591977]
[1734392926518,2.3075,216.61,216.58,6.48591977]
[1734392926818,6.48591977,216.6,216.27,141.31600395]
[1734392927020,2.3086,216.51,216.47,6.48591977]
[1734392928418,2.3085,216.52,216.49,6.48591977]
[1734392929517,2.24,216.56,216.5,2.3087]
[1734392929518,2.3083,216.54,216.5,2.3087]
[1734392929726,2.3083,216.54,216.51,6.48591977]
[1734392930018,2.3083,216.54,216.5,2.3087]
[1734392930223,2.24,216.59,216.48,2.24]
[1734392930224,2.3081,216.56,216.48,2.24]
[1734392930416,2.3081,216.56,216.5,10.13894903]
[1734392931018,2.3081,216.56,216.5,12.37894903]
[1734392931318,2.3081,216.56,216.52,2.3084]
[1734392932115,2.308,216.57,216.53,2.3083]
[1734392933520,2.308,216.57,216.5,12.37894903]
[1734392933521,2.3079,216.58,216.5,12.37894903]
[1734392934519,2.3079,216.58,216.53,2.3083]
[1734392934724,1.5904,216.65,216.53,10.13894903]
[1734392934923,1.84621064,216.66,216.59,2.3077]
[1734392935127,1.84621064,216.66,216.56,12.37894903]
[1734392935329,2.3073,216.64,216.56,12.37894903]
[1734392935529,0.92310532,216.66,216.62,2.3074]
[1734392939130,0.92310532,216.66,216.61,2.24]
[1734392939131,0.92310532,216.66,216.63,2.3073]
[1734392942035,0.92310532,216.66,216.61,2.24]
[1734392942036,0.92310532,216.66,216.65,2.3071]
[1734392942233,0.24901,216.68,216.62,10.13894903]
[1734392942536,0.24901,216.68,216.65,10.13894903]
[1734392943237,2.24,216.77,216.66,2.24]
[1734392943439,2.3062,216.74,216.69,2.3066]
[1734392943832,2.3062,216.74,216.68,10.13894903]
[1734392944832,2.24,216.78,216.72,2.3063]
[1734392945030,10.13894903,216.82,216.72,2.3063]
[1734392945031,2.24,216.8,216.72,2.3063]